[Event "IX Famalicao Open 2022"]
[Site "Vila Nova de Famalicao"]
[Date "2022.07.28"]
[Round "7.12"]
[White "Suarez Rozas, David"]
[Black "Romano, Joao"]
[Result "1/2-1/2"]
[ECO "B23"]
[WhiteElo "1772"]
[BlackElo "2029"]
[Annotator "TA"]
[PlyCount "96"]
[EventDate "2022.07.25"]
[EventType "tourn"]
[EventCountry "POR"]
[SourceTitle "playchess.com"]
[Source "ChessBase"]
[SourceQuality "1"]
[TimeControl "5400+30"]

{[%evp 9,96,18,18,20,31,32,41,40,40,0,0,-43,-43,-45,-41,-42,-32,-53,-41,-62,-56,-108,-104,-97,-84,-85,-86,-153,-111,-154,-159,-143,-139,-184,-170,-165,-160,-343,-346,-346,-322,-326,-145,-150,-168,-404,-412,-395,-147,-473,-447,-461,-441,-441,-428,-447,-437,-440,-449,-516,-484,-529,-540,-535,-518,-504,-497,-532,-521,-546,-443,-421,-420,-389,-387,-372,0,0,0,0,0,0,0,0,0,0,0,0,0]} 1. e4 {[%emt 0:00:01]} c5 {[%emt 0:00:46]} 2. Nc3 {[%emt 0:00:33]} e6 {[%emt 0:01:06]} 3. Nge2 {[%emt 0:00:51]} a6 {[%emt 0:05:25]} 4. a4 {[%emt 0:02:49]} b6 {[%emt 0:00:09]} 5. g3 {[%emt 0:00:20]} Bb7 {[%emt 0:00:05]} 6. Bg2 {[%emt 0:00:11] B23: Closed Sicilian: Lines without g3.} Nf6 {[%emt 0:01:39][%cal Ob6b5]} 7. O-O {[%emt 0:00:31]} d5 8. exd5 {[%emt 0:06:32] White is slightly better.} Nxd5 {[%emt 0:05:18]} 9. Nxd5 {[%emt 0:00:19]} (9. Nf4 $5 {[%cal Rc3d5]} Nxc3 10. dxc3 Bxg2 11. Nxg2 $14 (11. Qxd8+ Kxd8 12. Kxg2 Nc6 $11)) 9... Bxd5 {[%emt 0:00:15] [#]} 10. Nc3 $146 {[%emt 0:04:54]} ({Predecessor:} 10. d4 Bxg2 11. Kxg2 Qd5+ 12. Kg1 cxd4 13. Qxd4 Qxd4 14. Nxd4 Nd7 15. Be3 Rc8 16. Rac1 {0-1 (55) Sadykov,R (2345)-Gareyev,T (2573) Chess.com INT 2022}) 10... Bxg2 {[%emt 0:00:13]} 11. Kxg2 {[%emt 0:00:08]} Nc6 {[%emt 0:01:57]} 12. d3 {[%emt 0:00:19]} Be7 {[%emt 0:01:51]} 13. Be3 {[%emt 0:05:27]} O-O {[%emt 0:03:10]} 14. f4 {[%emt 0:01:08]} Qd7 {[%emt 0:03:29]} 15. g4 {[%emt 0:04:11]} ({White should play} 15. Bf2 $15) 15... f5 $17 {[%emt 0:03:19]} 16. g5 {[%emt 0:01:24]} e5 {[%emt 0:01:39]} 17. Qf3 {[%emt 0:02:56]} Rad8 {[%emt 0:00:41]} 18. a5 {[%emt 0:03:42]} ({Better is} 18. Kh1) 18... b5 {[%emt 0:00:32][%cal Bb6b5,Bb5b4][%mdl 32]} (18... bxa5 19. Kh1 $15) 19. Qf2 {[%emt 0:00:12]} exf4 {[%emt 0:21:48]} 20. Bxf4 {[%emt 0:06:53]} Nd4 {[%emt 0:02:33]} 21. Rae1 {[%emt 0:01:34]} Rde8 {[%emt 0:05:45]} ({Weaker is} 21... b4 22. Nd1 $17) 22. Re5 {[%emt 0:18:55]} b4 {[%emt 0:01:57]} 23. Nd5 $2 {[%emt 0:03:51] [#]} (23. Ne2 $17) 23... Bxg5 $1 $19 {[%emt 0:02:11][%cal Be7g5,Bg5f4,Bf4d6][%mdl 544] Threatens to win with ...Rxe5.} 24. Rfe1 {[%emt 0:01:48]} Rxe5 {[%emt 0:04:40]} 25. Rxe5 {[%emt 0:00:16]} Nc6 {[%emt 0:02:46]} ({Don't blunder} 25... Bxf4 $2 26. Qxf4 Kh8 27. Ne7 $19) (25... Bd8 $19 {Strongly threatening ...Nc6.} 26. c4 g5) 26. Nb6 $17 {[%emt 0:02:58]} Qb7 {[%emt 0:00:20]} 27. Qf3 $2 {[%emt 0:00:39]} (27. Rxc5 Nd8+ 28. Kg3 (28. Kg1 $2 Ne6 $19)) 27... Bxf4 $19 {[%emt 0:00:53]} 28. Rxc5 {[%emt 0:00:12] [#]} Nxa5 {[%emt 0:03:30]} (28... Nd8 $1 $19 {has better winning chances.} 29. Qd5+ Kh8 30. Qxb7 Nxb7) 29. Qd5+ $2 {[%emt 0:00:47][%mdl 8192]} (29. Nd5 $17 {was the crucial defense.} Bd6 30. Rxa5) 29... Qxd5+ {[%emt 0:07:11]} 30. Nxd5 {[%emt 0:00:14]} Nb7 {[%emt 0:00:21]} 31. Rc6 {[%emt 0:00:16]} Bd6 {[%emt 0:00:58]} 32. Rxa6 {[%emt 0:01:10]} g5 {[%emt 0:03:28]} 33. Rb6 {[%emt 0:00:50]} Rf7 {[%emt 0:00:04]} 34. Rb5 {[%emt 0:01:06]} f4 {[%emt 0:01:40]} 35. Kf3 {[%emt 0:01:54]} Kg7 {[%emt 0:05:00]} 36. h3 {[%emt 0:00:57]} h5 {[%emt 0:01:25]} 37. d4 {[%emt 0:00:56]} Kg6 {[%emt 0:01:26]} 38. c4 {[%emt 0:00:50]} bxc3 {[%emt 0:00:24]} 39. bxc3 {[%emt 0:00:05]} g4+ {[%emt 0:01:09]} 40. hxg4 {[%emt 0:00:10]} hxg4+ {[%emt 0:00:03]} 41. Kxg4 {[%emt 0:00:11]} f3 {[%emt 0:00:59]} 42. Ne3 {[%emt 0:00:35] [#]} f2 $2 {[%emt 0:01:46]} (42... Rf4+ $1 $19 43. Kh3 Nd8) 43. Rg5+ $11 {[%emt 0:01:26] The position is equal.} Kh7 {[%emt 0:02:15]} 44. Rh5+ {[%emt 0:00:43]} Kg8 {[%emt 0:00:04]} 45. Rg5+ $1 {[%emt 0:00:05]} Kf8 {[%emt 0:00:04] White must now prevent ...Bf4.} 46. Rf5 {[%emt 0:00:19] Against Bf4} Rxf5 {[%emt 0:03:06]} 47. Kxf5 {[%emt 0:00:19]} Ke7 {[%emt 0:01:02]} 48. Kg4 {[%emt 0:00:35]} Bh2 {[%emt 0:01:18] Black had all chances to win.  Weighted Error Value: White=0.37/Black=0.25 (precise)} 1/2-1/2

[Event "IX Famalicao Open 2022"]
[Site "Vila Nova de Famalicao"]
[Date "2022.07.29"]
[Round "8.1"]
[White "Krishna C R G"]
[Black "Aditya Mittal"]
[Result "1-0"]
[ECO "A15"]
[WhiteElo "2430"]
[BlackElo "2480"]
[Annotator "TA"]
[PlyCount "131"]
[EventDate "2022.07.25"]
[EventType "tourn"]
[EventCountry "POR"]
[SourceTitle "playchess.com"]
[Source "ChessBase"]
[SourceQuality "1"]
[TimeControl "5400+30"]

{[%evp 9,131,8,6,-3,155,0,8,2,0,0,13,6,10,2,8,0,0,0,0,0,0,0,0,0,0,0,13,13,20,10,26,31,26,16,29,26,34,-12,16,-15,-13,-30,0,-21,27,35,37,19,22,12,21,13,17,11,11,6,9,8,15,14,12,5,26,-24,-34,-34,-34,-35,-33,-35,-36,-26,0,0,160,147,195,189,252,253,258,257,321,308,660,635,635,613,367,340,279,49,456,381,295,0,0,0,377,325,306,0,297,278,138,8,452,0,8,0,0,0,552,471,29973,29973,29968,29962,29990,29991,29991,29981,29992,29993]} 1. c4 Nf6 2. e3 e6 3. b3 d5 4. Bb2 b6 5. Nc3 Bb7 6. cxd5 {A15: English Opening: 1...Nf6.} Be7 $2 (6... exd5 $11 7. Nf3 c6) 7. d4 $2 (7. dxe6 $16 fxe6 8. Nf3) 7... exd5 8. Bd3 {[#] The position is equal.} O-O $146 ({Predecessor:} 8... Nbd7 9. Nge2 O-O 10. Qc2 c5 11. O-O Rc8 12. Rad1 a6 13. dxc5 Rxc5 14. Ng3 b5 {1-0 (35) Peroza,E (1950)-Albiero,M (1559) Florianopolis 2021}) 9. Nf3 Re8 10. O-O Bd6 {Inhibits Ne5.} 11. Nb5 Bf8 12. Qc2 (12. Ne5 {feels hotter.} c5 13. Nc3 Nbd7 14. f4) 12... c6 13. Nc3 Nbd7 14. Rac1 Rc8 15. Rfd1 g6 16. Qe2 Bd6 17. Ba6 Qc7 18. Rc2 Qb8 19. Rdc1 b5 20. Bxb7 Qxb7 21. Nd2 Nb6 22. Qf3 Re6 23. g3 (23. Qd1 $14) 23... b4 24. Ne2 Ne4 25. Qg2 Qa6 26. Ba1 Qb5 (26... Nxd2 {feels stronger.} 27. Rxd2 Qb7) 27. Nf3 $11 {[%cal Bd2f3,Bf3e1,Be1d3,Bd3b4][%mdl 32]} Re7 28. Qf1 Rec7 29. Nf4 Qxf1+ 30. Kxf1 Bxf4 31. gxf4 f6 $1 {Prevents Ne5.} 32. Ne1 a5 33. Nd3 Nd7 34. Bb2 Kf7 35. Ke2 Ke6 36. a3 ({Better is} 36. Ke1) 36... a4 $1 37. Nxb4 (37. bxa4 b3 38. Rc3 Nxc3+ 39. Rxc3 Rb8 $17) 37... axb3 38. Rxc6+ Rxc6 39. Nxc6 Nb6 $1 {And now ...Na4 would win.} 40. Na5 $1 Nc4 (40... Rb8 $5 {[%cal Rb6a4]} 41. Nc6 (41. Nxb3 $2 Nc4 $19) 41... Ra8 $15) 41. Nxc4 (41. Nxb3 $2 Rb8 42. Nc5+ (42. f5+ $2 Kxf5 43. Rc2 Rxb3 $19) 42... Nxc5 $19) 41... dxc4 {[%mdl 4096] Endgame KRB-KRN} (41... Rxc4 $11 42. f3 Rxc1 43. Bxc1 Nc3+ 44. Kd3 Na4) 42. f3 $16 Nd6 (42... c3 $16 {might work better.} 43. fxe4 cxb2) 43. e4 $18 {[%cal Be3e4,Be4e5][%mdl 32]} f5 (43... Ke7 {was worth a try.} 44. Kd2 Kd7) 44. d5+ Kd7 45. e5 Nb5 {Hoping for ...c3.} 46. a4 c3 $2 (46... Nc7) 47. axb5 cxb2 {KR-KR} 48. Rb1 Rc5 49. Rxb2 Rxb5 50. d6 $2 (50. Ke3 $18) 50... Rb4 {[%mdl 8192]} ({Black should try} 50... g5 $1 $14) 51. Ke3 Ke6 52. Kf2 $2 (52. Kd2 $1 $18) 52... h6 $11 53. h4 Kd7 $2 {[%mdl 8192]} ({Don't do} 53... Rxf4 54. Rd2 Rxh4 55. Rd1 $16) (53... Rb7 $11) 54. Ke3 Ke6 {[%cal Og6g5]} 55. Kf2 $2 (55. Kd2 $1 $18 {[%cal Rd2c3]}) 55... Kd7 $2 {[%mdl 8192]} ({Don't take} 55... Rxf4 56. Rd2 Rxh4 57. Rd1 $16) (55... Rb7 $11 {and Black has nothing to worry.}) 56. Ke2 $1 $18 Ke6 {[#]} 57. Ke3 ({White must play} 57. Kd2 $1 $16 {[%cal Rd2c3]}) 57... Kd7 $2 {[%mdl 8192] [#]} (57... g5 $1 $11) 58. Kf2 $2 ({Only move:} 58. Kd2 $1 $18 {Threatens to win with Kc3.} Rd4+ 59. Kc3 Rxf4 60. Kxb3) 58... Ke6 $11 59. Rd2 {Strongly threatening d7.} Rb7 60. Kg3 b2 $2 {[%mdl 8192]} (60... g5 $11 {and Black stays safe.} 61. hxg5 b2) 61. d7 $1 $18 b1=Q (61... Rxd7 $18 62. Rxb2 Kf7) 62. d8=Q {[%csl Ge5][%cal Rd8f6] White mates.} ({Inferior is} 62. Rd6+ Kf7 63. d8=Q Qg1+ 64. Kh3 Qh1+ 65. Kg3 Qg1+ 66. Kh3 Qh1+ 67. Kg3 Qg1+ $11) 62... Qg1+ 63. Rg2 Qe1+ 64. Kh2 g5 65. Rd2 {[%csl Ge5][%cal Rd8f6]} Qxh4+ 66. Kg2 {Weighted Error Value: White=0.42/Black=0.73} 1-0

[Event "IX Famalicao Open 2022"]
[Site "Vila Nova de Famalicao"]
[Date "2022.07.29"]
[Round "8.2"]
[White "Abdisalimov, Abdimalik"]
[Black "Nigmatov, Ortik"]
[Result "1/2-1/2"]
[ECO "C67"]
[WhiteElo "2437"]
[BlackElo "2437"]
[Annotator "TA"]
[PlyCount "79"]
[EventDate "2022.07.25"]
[EventType "tourn"]
[EventCountry "POR"]
[SourceTitle "playchess.com"]
[Source "ChessBase"]
[SourceQuality "1"]
[TimeControl "5400+30"]

{[%evp 18,79,26,20,22,0,0,5,7,0,9,0,0,0,7,0,0,0,0,0,0,0,0,0,0,0,0,0,0,0,0,-1,0,0,0,0,0,-1,0,0,0,0,0,0,0,0,0,0,0,0,0,0,0,0,0,0,0,0,0,0,0,0,0,0]} 1. e4 {[%emt 0:02:29]} e5 {[%emt 0:00:07]} 2. Nf3 {[%emt 0:00:05]} Nc6 {[%emt 0:00:06]} 3. Bb5 {[%emt 0:00:04]} Nf6 {[%emt 0:00:06]} 4. O-O {[%emt 0:00:05][%cal Bh1f1,Bf1e1,Be1e5][%mdl 32]} Nxe4 {[%emt 0:00:09]} 5. Re1 {[%emt 0:00:02]} Nd6 {[%emt 0:00:08]} 6. Nxe5 {[%emt 0:00:02]} Nxe5 {[%emt 0:00:07]} 7. Rxe5+ {[%emt 0:00:03]} Be7 {[%emt 0:00:06]} 8. Bf1 {[%emt 0:00:03]} O-O {[%emt 0:00:08]} 9. d4 {[%emt 0:00:01]} Bf6 {[%emt 0:00:21]} 10. Re1 {[%emt 0:00:03]} Re8 {[%emt 0:00:07] The position is equal. C67: Ruy Lopez: Berlin Defence: 4 0-0 Nxe4.} 11. Rxe8+ {[%emt 0:00:07]} Nxe8 {[%emt 0:00:07]} 12. c3 {[%emt 0:00:02]} d5 {[%emt 0:00:46]} 13. Bd3 {[%emt 0:00:21]} g6 {[%emt 0:00:14]} 14. Bf4 {[%emt 0:00:03]} Ng7 {[%emt 0:00:07]} 15. Nd2 {[%emt 0:00:04]} Bf5 {[%emt 0:00:24]} 16. Nf3 {[%emt 0:00:10]} c6 {[%emt 0:00:30]} 17. Bxf5 {[%emt 0:00:13]} Nxf5 {[%emt 0:00:05]} 18. Qe2 {[%emt 0:00:06]} Qe7 {[%emt 0:00:27] [#]} 19. Re1 $146 {[%emt 0:00:04]} ({Predecessor:} 19. Qxe7 Bxe7 20. Re1 Bf8 21. Ne5 f6 22. Nd7 Kf7 23. Kf1 Be7 24. g4 {½-½ (38) Godbole,A (2178)-Nicolai,A (2059) Groningen 2017}) 19... Re8 {[%emt 0:00:13]} 20. Qxe7 {[%emt 0:00:04]} Rxe7 {[%emt 0:00:05]} 21. Rxe7 {[%emt 0:00:04]} Bxe7 $11 {[%emt 0:00:17][%mdl 4096] Endgame KBN-KBN} 22. h3 {[%emt 0:00:03]} Bd6 {[%emt 0:00:13]} 23. Bxd6 {[%emt 0:00:06]} Nxd6 {[%emt 0:00:03] KN-KN} 24. Nd2 {[%emt 0:00:32]} f6 {[%emt 0:00:13]} 25. Kf1 {[%emt 0:00:03]} Kf7 {[%emt 0:00:05]} 26. Ke2 {[%emt 0:00:05]} Ke6 {[%emt 0:00:06]} 27. Kd3 {[%emt 0:00:03]} h5 {[%emt 0:00:27]} 28. g4 {[%emt 0:00:04]} hxg4 {[%emt 0:00:05]} 29. hxg4 {[%emt 0:00:02]} g5 {[%emt 0:00:14]} 30. f3 {[%emt 0:00:05]} b6 {[%emt 0:00:06]} 31. b3 {[%emt 0:00:03]} Nf7 {[%emt 0:00:06]} 32. Nf1 {[%emt 0:00:04]} f5 {[%emt 0:00:47]} 33. Ne3 {[%emt 0:00:04]} f4 {[%emt 0:00:18]} 34. Nf1 {[%emt 0:00:04]} Nh8 {[%emt 0:00:19]} 35. Nd2 {[%emt 0:00:04]} Ng6 {[%emt 0:00:06]} 36. Ke2 {[%emt 0:00:09]} Kd6 {[%emt 0:00:09]} 37. Nb1 {[%emt 0:00:04]} Ne7 {[%emt 0:00:11]} 38. Na3 {[%emt 0:00:02]} Ng6 {[%emt 0:00:13]} 39. Nc2 {[%emt 0:00:03]} Nf8 {[%emt 0:00:29]} 40. Ne1 {[%emt 0:00:05] An even fight not without its subleties.  Weighted Error Value: White=0.02 (flawless) /Black=0.01 (flawless)} 1/2-1/2

[Event "IX Famalicao Open 2022"]
[Site "Vila Nova de Famalicao"]
[Date "2022.07.29"]
[Round "8.3"]
[White "Dias, Ivo Rodrigues"]
[Black "Martinez Duany, Lelys Stanley"]
[Result "0-1"]
[ECO "E46"]
[WhiteElo "2133"]
[BlackElo "2497"]
[Annotator "TA"]
[PlyCount "134"]
[EventDate "2022.07.25"]
[EventType "tourn"]
[EventCountry "POR"]
[SourceTitle "playchess.com"]
[Source "ChessBase"]
[SourceQuality "1"]
[TimeControl "5400+30"]

{[%evp 19,134,0,0,0,7,7,4,0,2,0,20,0,13,-54,-49,-227,-212,-226,-231,-252,-260,-395,-409,-408,-400,-385,-259,-282,-245,-402,-299,-299,-298,-300,-288,-291,-297,-303,-292,-278,-276,-296,-289,-302,-300,-282,-304,-298,-281,-298,-295,-257,-228,-252,-206,-197,-183,-262,-208,-256,-253,-360,-357,-308,-170,-181,-174,-182,-182,-179,-25,-8,-11,-12,0,-41,-30,-84,-63,-67,-14,-14,-14,-179,-158,-1710,-1183,-1168,-1168,-1168,-308,-3052,-2458,-2733,-2147,-29971,-29972,-29972,-29973,-29972,-29973,-29974,-29975,-29975,-29976,-29975,-29977,-29977,-29978,-29978,-29979,-29979,-29980,-29980,-29981,-29981,-29982]} 1. d4 {[%emt 0:12:18]} Nf6 {[%emt 0:00:12]} 2. c4 {[%emt 0:00:47]} e6 {[%emt 0:01:34]} 3. Nc3 {[%emt 0:00:41]} Bb4 {[%emt 0:00:08]} 4. e3 {[%emt 0:00:23]} O-O {[%emt 0:00:35]} 5. Nge2 {[%emt 0:02:36]} d5 {[%emt 0:00:12]} 6. a3 {[%emt 0:00:13]} Be7 {[%emt 0:00:06]} 7. cxd5 {[%emt 0:02:07]} exd5 {[%emt 0:00:21]} 8. Nf4 {[%emt 0:01:45]} Re8 {[%emt 0:00:22]} 9. Bd3 {[%emt 0:00:32]} c6 {[%emt 0:00:43]} 10. O-O {[%emt 0:00:22]} Nbd7 {[%emt 0:00:46]} 11. f3 {[%emt 0:01:04] E46: Nimzo-Indian: Rubinstein: 4 e3 0-0 5 Ne2 without early Bd3.} Nf8 {[%emt 0:00:22]} 12. Bc2 {[%emt 0:00:44]} Ne6 {[%emt 0:04:58]} 13. Nxe6 {[%emt 0:01:08] The position is equal.} Bxe6 {[%emt 0:00:29]} 14. e4 {[%emt 0:02:51]} dxe4 {[%emt 0:12:49]} 15. fxe4 {[%emt 0:00:46]} Qb6 {[%emt 0:01:15]} 16. Qd3 {[%emt 0:14:33]} (16. Na4 $11 Qb5 17. e5) 16... Rad8 $15 {[%emt 0:08:16] [#]} 17. Be3 $146 {[%emt 0:01:32]} (17. Ne2 $15 Bg4 18. Kh1 Bxe2 19. Qxe2) ({Predecessor:} 17. Ne2 Bd6 18. h3 Be5 19. Be3 c5 20. d5 Bd7 21. Rab1 Bb5 22. Qd2 Qc7 23. Kh1 {0-1 (42) Pritchard,O (2250)-Biedermann,T (2412) ICCF email 2012}) 17... Ng4 $19 {[%emt 0:00:47]} (17... Qxb2 $2 18. Rfb1 Bc4 19. Qd2 (19. Rxb2 Bxd3 20. Bxd3 Ng4 $16) (19. Qxc4 Qxc2 20. Rc1 b5 $17) 19... Qxb1+ 20. Rxb1 $18) 18. e5 {[%emt 0:14:39]} g6 {[%emt 0:00:39][%cal Og4e5,Bg7g6,Bg6g5][%mdl 32]} 19. Na4 {[%emt 0:00:23]} Qb5 {[%emt 0:02:19] And now ...Qxd3 would win.} 20. Bf4 {[%emt 0:16:15]} (20. Qc3 $142 Nxe3 21. Qxe3) 20... Qxd3 {[%emt 0:00:27]} 21. Bxd3 {[%emt 0:00:02]} Rxd4 {[%emt 0:00:10]} 22. Bc2 {[%emt 0:00:18]} g5 {[%emt 0:01:19]} 23. Bc1 {[%emt 0:01:24]} Red8 {[%emt 0:07:13]} (23... Nxe5 $2 24. Be3 Rc4 25. Nc3 $19) 24. Re1 $2 {[%emt 0:03:00] [#]} (24. h3 {might work better.} Nxe5 25. Be3) 24... Rxa4 $1 {[%emt 0:01:20][%mdl 512]} 25. Bxa4 {[%emt 0:00:04]} Bc5+ {[%emt 0:00:09]} 26. Kh1 {[%emt 0:00:29]} b5 {[%emt 0:01:16]} 27. Bc2 {[%emt 0:04:10]} (27. Bxg5 Nf2+ 28. Kg1 Nh3+ 29. Kh1 Nf2+ 30. Kg1 Nh3+ 31. Kh1 Nxg5 $19) 27... Nf2+ {[%emt 0:00:25]} 28. Kg1 {[%emt 0:00:02]} Nd3+ {[%emt 0:00:33][%mdl 64] Discovered Attack} 29. Be3 {[%emt 0:00:45] Bxd3 is the strong threat.} Nxe1 {[%emt 0:00:22]} 30. Rxe1 {[%emt 0:00:12]} Bxe3+ {[%emt 0:00:13]} 31. Rxe3 {[%emt 0:00:02][%mdl 4096] Endgame KRB-KRB} Rd2 {[%emt 0:00:09]} 32. Be4 {[%emt 0:01:09]} c5 {[%emt 0:01:57][%cal Bc6c5,Bc5c4][%mdl 32]} (32... Rxb2 $2 33. Bxc6 a5 34. Rd3 $19) 33. Rc3 {[%emt 0:00:51]} c4 {[%emt 0:02:33]} ({Wrong is} 33... Rxb2 $2 34. Rxc5 a6 35. Rc3 $19) 34. Rc2 {[%emt 0:02:23]} Rd4 {[%emt 0:04:18]} 35. Bc6 {[%emt 0:02:41]} a6 {[%emt 0:00:07]} 36. Kf2 {[%emt 0:00:35]} Kg7 {[%emt 0:00:28]} 37. Ke3 {[%emt 0:00:39]} Rd3+ {[%emt 0:00:13]} 38. Ke2 {[%emt 0:00:37]} (38. Ke4 $142) 38... Kg6 {[%emt 0:01:02]} 39. a4 {[%emt 0:01:57]} Rb3 {[%emt 0:00:45]} 40. Bb7 {[%emt 0:02:28]} (40. axb5 {was called for.} axb5 41. Kd1) 40... Bf5 {[%emt 0:00:22]} ({Don't go for} 40... bxa4 $2 41. Bc6 $19) 41. Rd2 {[%emt 0:00:22]} Bd3+ {[%emt 0:00:57]} (41... bxa4 $142 42. Bd5 Bg4+ 43. Ke1 Be6 44. Bxe6 fxe6) 42. Ke3 {[%emt 0:00:56]} bxa4 {[%emt 0:00:36]} 43. Bd5 {[%emt 0:02:06]} Bf5+ $1 {[%emt 0:19:45]} 44. Kd4 {[%emt 0:02:53]} a3 $2 {[%emt 0:04:19]} ({Not} 44... Rd3+ 45. Rxd3 cxd3 46. Ke3 $11) (44... Be6 $1 $19 {[%cal Re6d5] aiming for ...Bxd5.} 45. Bxe6 fxe6) 45. bxa3 $11 {[%emt 0:02:14]} Rxa3 {[%emt 0:00:36]} 46. Bxc4 {[%emt 0:04:14]} Kg7 {[%emt 0:06:54]} 47. Kc5 {[%emt 0:00:43]} (47. Rf2 $5 {[%cal Rf2f5]} Be6 48. Bxe6 fxe6 49. h3 $11) 47... a5 {[%emt 0:00:47]} 48. Kd6 {[%emt 0:00:58]} (48. Rf2 $11 {remains equal.} Bg6 49. g3) 48... Rc3 {[%emt 0:00:24]} 49. Bd5 {[%emt 0:00:27]} a4 {[%emt 0:00:20]} ({Black should play} 49... Rc2 $15 50. Rd1 Rf2) 50. Rf2 $1 {[%emt 0:00:23]} Bg6 {[%emt 0:00:13]} 51. Ke7 $2 {[%emt 0:00:26] White is now going downhill.} (51. Rb2 $1 $11) 51... a3 $19 {[%emt 0:00:34] White must now prevent ...Rc2.} 52. Ba2 $2 {[%emt 0:00:22]} (52. h3 $17) 52... Rc7+ {[%emt 0:01:57]} 53. Kd6 {[%emt 0:00:14]} Rc2 {[%emt 0:00:36]} 54. Rxc2 {[%emt 0:00:09]} Bxc2 {[%emt 0:00:06] KB-KB} 55. Ke7 $2 {[%emt 0:00:35]} (55. Kc5 Be4 56. g4) 55... Bg6 {[%emt 0:02:04] Hoping for ...Bf5.} 56. g4 {[%emt 0:00:28] Prevents Bf5.} h5 {[%emt 0:02:57]} 57. gxh5 {[%emt 0:01:24]} Bxh5 {[%emt 0:00:07] Black mates.} 58. Bb3 {[%emt 0:00:34]} Bg6 {[%emt 0:00:19]} 59. Ba2 {[%emt 0:00:02]} g4 {[%emt 0:00:55]} 60. Bb3 {[%emt 0:00:48]} Bb1 {[%emt 0:00:13]} 61. Bxf7 {[%emt 0:00:10]} a2 $1 {[%emt 0:00:07]} 62. Bxa2 {[%emt 0:00:05]} Bxa2 {[%emt 0:00:05] KB-KPP} 63. e6 {[%emt 0:00:25]} Kg6 {[%emt 0:00:14]} 64. Kd6 {[%emt 0:00:27]} Kf6 {[%emt 0:01:00]} 65. e7 {[%emt 0:00:02] [#]} Bf7 $1 {[%emt 0:00:06]} (65... Kf7 66. Kd7 Kf6 67. e8=Q Kf5 68. Qf8+ Ke5 69. Qd6+ Ke4 70. Qb4+ Kf3 71. Qa3+ Kf2 72. Qxa2+) 66. Kd7 {[%emt 0:00:10] [#]} Kg5 $1 {[%emt 0:00:09]} 67. Kd6 {[%emt 0:00:19]} Kf4 {[%emt 0:01:21] Weighted Error Value: White=0.73/Black=0.28 (precise)} 0-1

[Event "IX Famalicao Open 2022"]
[Site "Vila Nova de Famalicao"]
[Date "2022.07.29"]
[Round "8.4"]
[White "Petkov, Vladimir"]
[Black "Das, Sayantan"]
[Result "0-1"]
[ECO "A05"]
[WhiteElo "2470"]
[BlackElo "2449"]
[Annotator "TA"]
[PlyCount "110"]
[EventDate "2022.07.25"]
[EventType "tourn"]
[EventCountry "POR"]
[SourceTitle "playchess.com"]
[Source "ChessBase"]
[SourceQuality "1"]
[TimeControl "5400+30"]

{[%evp 12,110,18,0,-7,-17,12,0,19,19,18,13,17,0,0,-7,0,0,56,14,56,60,62,61,65,63,107,29,55,55,55,63,81,94,96,32,47,22,35,16,21,14,33,33,31,16,32,24,22,23,24,24,17,17,17,18,20,22,30,8,15,0,0,0,8,8,8,11,18,0,0,0,0,-8,0,0,0,-8,0,0,0,-54,-54,-69,-69,-252,-26,-4906,-4494,-29941,-29942,-29946,-29947,-29946,-29950,-29940,-12849,-6602,-4187,-4149,-4137]} 1. Nf3 Nf6 2. g3 g6 3. Bg2 Bg7 4. O-O c5 5. c3 O-O 6. d4 Na6 7. Re1 d5 {A49: 1 d4 Nf6 2 Nf3 g6 3 g3: Anti-King's Indian systems.} 8. Bf4 Qb6 9. Qb3 {[#]} h6 $146 {The position is equal.} ({Predecessor:} 9... Bf5 10. Nbd2 Rfc8 11. Qxb6 axb6 12. Be5 Ne4 13. Bxg7 Kxg7 14. e3 b5 15. Nxe4 Bxe4 {1-0 (58) Atalik,E (2462)-Abdumalik,Z (2465) Moscow 2019}) 10. Nbd2 Bf5 11. Be5 Rfd8 12. dxc5 Nxc5 13. Qxb6 axb6 14. Nd4 Ncd7 (14... Bc8 $11) 15. Bf4 ({Much worse is} 15. Nxf5 Nxe5 16. Nd4 (16. Nxe7+ Kf8 $15) 16... e6 $11) (15. Bxf6 $5 Nxf6 16. Nxf5 gxf5 17. Nf3 $11) 15... e5 16. Nxf5 gxf5 17. Be3 Nc5 {[%cal Of5f4]} 18. Nf3 Nfe4 19. Nh4 (19. Red1 $16) 19... f4 20. Bxc5 bxc5 21. Nf5 fxg3 22. hxg3 Nf6 23. Red1 ({White should play} 23. c4 $1 $16) 23... Bf8 24. a4 {[%cal Oc3c4]} c4 25. b3 cxb3 26. Rdb1 Ra7 {[%cal Ob7b5]} 27. Rxb3 Rda8 28. Rb5 e4 29. a5 Ra6 {[%cal Ob7b6]} 30. Rxb7 {Threatens to win with Rb5.} Rxa5 31. Rxa5 Rxa5 32. Rb8 h5 33. Rc8 Ra1+ 34. Bf1 Rc1 35. e3 Ng4 36. Ne7+ Kg7 37. Nxd5 Rc2 38. Nf4 Nxf2 39. Nxh5+ Kg8 40. Bc4 Ng4 41. Bb3 Rb2 42. Rb8 {[%cal Ob3f7]} Rb1+ 43. Kg2 {[%cal Ob3f7] Hoping for Bxf7+!} Nxe3+ 44. Kf2 Nd1+ 45. Kg2 {[%cal Ob3f7] Black must now prevent Bxf7+!} Nxc3 46. Nf6+ (46. Rb7 $11) 46... Kg7 $15 47. Nh5+ Kh6 {Black is more active.} 48. g4 $2 {[#]} (48. Rxf8 $15 Rxb3 49. g4) 48... Bc5 $2 (48... Bd6 $1 $19 {[%cal Rd6b8]} 49. Rh8+ Kg5) 49. Ng3 $2 {[%mdl 8192]} (49. Rh8+ $11 Kg5 50. Kh3 Rh1+ 51. Kg2) 49... Rg1+ $19 50. Kh3 {[#]} Rxg3+ $1 {[%mdl 512]} 51. Kxg3 (51. Kh2 Rxg4) 51... Bd6+ 52. Kh4 Bxb8 53. Bxf7 Bf4 (53... e3 $142 54. g5+ Kg7 55. Bc4 e2 56. Bxe2 Nxe2 57. Kg4 Nd4 58. Kh5 Be5 59. g6 Kf6 60. Kh4 Kxg6 61. Kh3 Kg5 62. Kg2 Bg7 63. Kh1 Ne2 64. Kh2 Kg4 65. Kg2 Nd4 66. Kh2 Kf3 67. Kh3 Nf5 68. Kh2 Ne3 69. Kh1 Bd4 70. Kg1 Bh8 71. Kh1 Bd4 72. Kh2 Bf6 73. Kh3 Nf5 74. Kh2 Be5+ 75. Kh1 Nd4 76. Kg1 Nb3 77. Kh1 Nd2 78. Kg1 Bf4 79. Kh1 Be5 80. Kg1 Bh8 81. Kh2 Bf6 82. Kh3 Ne4 83. Kh2 Bd4 84. Kh3 Be5 85. Kh4 Bg3+ 86. Kh5 Kf4 87. Kg6 Bh4 88. Kh5 Be7 89. Kh6 Kf5 90. Kg7 Bf6+ 91. Kh6 Bg5+ 92. Kg7 Nd6 93. Kg8 Kg6 94. Kf8 Bf6 95. Kg8 Be7 96. Kh8 Nf7+ 97. Kg8 Nh6+ 98. Kh8 Bf6#) 54. Bc4 Kg6 55. Ba6 Kf6 {Weighted Error Value: White=0.45/Black=0.34} 0-1